fUST/lending_fUST_20241202
["ID","MTS","AMOUNT","RATE_DAILY","PERIOD"]
[343925200,1733075439975,-500.0,0.00027945,3]
[343925201,1733075439985,-500.0,0.00027945,3]
[343925202,1733075439994,-500.0,0.00027945,3]
[343925203,1733075440003,-839.67,0.00027945,3]
[343925204,1733075440013,-769.82599605,0.00027972,2]
[343925205,1733075440022,-169.870266,0.00027996,2]
[343925206,1733075440032,-500.0,0.0002807,5]
[343925207,1733075440042,-10105.53501646,0.0002816,2]
[343925208,1733075440051,-272.0,0.00028182,2]
[343925210,1733075440062,-500.0,0.00028219,3]
[343925212,1733075440072,-500.0,0.00028219,3]
[343925213,1733075440082,-500.0,0.00028219,3]
[343925214,1733075440092,-500.0,0.00028219,3]
[343925215,1733075440101,-500.0,0.00028219,3]
[343925216,1733075440111,-500.0,0.00028219,3]
[343925217,1733075440121,-541.37,0.00028219,3]
[343925218,1733075440131,-3118.41,0.00028219,3]
[343925219,1733075440141,-500.0,0.00028219,3]
[343925220,1733075440151,-500.0,0.00028219,3]
[343925221,1733075440160,-585.18,0.00028219,3]
[343925222,1733075440170,-500.0,0.00028219,3]
[343925223,1733075440182,-500.0,0.00028219,3]
[343925224,1733075440192,-10337.96,0.00028219,3]
[343925225,1733075440202,-500.0,0.00028219,3]
[343925226,1733075440212,-500.0,0.00028219,3]
[343925227,1733075440222,-1652.49,0.00028219,3]
[343925228,1733075440231,-1310.96,0.00028219,3]
[343925229,1733075440240,-500.0,0.00028219,3]
[343925230,1733075440250,-500.0,0.00028219,3]
[343925231,1733075440259,-500.0,0.00028219,3]
[343925232,1733075440268,-432.7,0.00028219,3]
[343925233,1733075440278,-500.0,0.00028219,3]
[343925234,1733075440288,-500.0,0.00028219,3]
[343925235,1733075440299,-648.57500045,0.00028219,3]
[343925236,1733075440309,-839.67,0.00028219,3]
[343925237,1733075440319,-169.870266,0.00028338,2]
[343925238,1733075440328,-10105.53501646,0.00028349,2]
[343925239,1733075440338,-769.82599605,0.00028372,2]
[343925240,1733075440348,-497.19,0.00028391,15]
[343925241,1733075440357,-164.693518,0.00028445,2]
[343925242,1733075440367,-500.0,0.00028493,3]
[343925243,1733075440376,-550.6824171,0.00028493,3]
[343925244,1733075440386,-500.0,0.00028493,3]
[343925245,1733075440395,-500.0,0.00028493,3]
[343925246,1733075440405,-500.0,0.00028493,3]
[343925247,1733075440414,-500.0,0.00028493,3]
[343925248,1733075440424,-541.37,0.00028493,3]
[343925249,1733075440435,-3118.41,0.00028493,3]
[343925250,1733075440444,-500.0,0.00028493,3]
[343925251,1733075440454,-500.0,0.00028493,3]
[343925252,1733075440463,-585.18,0.00028493,3]
[343925253,1733075440474,-500.0,0.00028493,3]
[343925254,1733075440486,-500.0,0.00028493,3]
[343925255,1733075440495,-10337.96,0.00028493,3]
[343925256,1733075440507,-500.0,0.00028493,3]
[343925257,1733075440516,-500.0,0.00028493,3]
[343925258,1733075440526,-1652.49,0.00028493,3]
[343925259,1733075440535,-1310.96,0.00028493,3]
[343925260,1733075440545,-500.0,0.00028493,3]
[343925261,1733075440555,-500.0,0.00028493,3]
[343925262,1733075440564,-500.0,0.00028493,3]
[343925263,1733075440574,-500.0,0.00028493,3]
[343925264,1733075440589,-500.0,0.00028493,3]
[343925265,1733075440598,-839.67,0.00028493,3]
[343925266,1733075440608,-300.0,0.000285,2]
[343925267,1733075440619,-187.96,0.000285,31]
[343925268,1733075440630,-187.96,0.000285,31]
[343925269,1733075440640,-187.96,0.000285,31]
[343925270,1733075440650,-187.96,0.000285,31]
[343925271,1733075440662,-187.96,0.000285,31]
[343925272,1733075440672,-187.96,0.000285,31]
[343925273,1733075440684,-187.96,0.000285,31]
[343925274,1733075440693,-187.96,0.000285,31]
[343925275,1733075440703,-187.96,0.000285,31]
[343925276,1733075440713,-187.96,0.000285,31]
[343925277,1733075440722,-187.96,0.000285,31]
[343925278,1733075440732,-187.96,0.000285,31]
[343925279,1733075440742,-187.96,0.000285,31]
[343925280,1733075440752,-187.96,0.000285,31]
[343925281,1733075440762,-187.96,0.000285,31]
[343925282,1733075440773,-187.96,0.000285,31]
[343925283,1733075440783,-187.96,0.000285,31]
[343925284,1733075440793,-187.96,0.000285,31]
[343925285,1733075440803,-187.96,0.000285,31]
[343925286,1733075440813,-187.96,0.000285,31]
[343925287,1733075440823,-187.96,0.000285,31]
[343925288,1733075440833,-187.96,0.000285,31]
[343925289,1733075440843,-187.96,0.000285,31]
[343925290,1733075440853,-187.96,0.000285,31]
[343925291,1733075440863,-4761.85256221,0.00028585,2]
[343925292,1733075440882,-5343.68245425,0.00028585,2]
[343925293,1733075440893,-4424.62095843,0.00028602,2]
[343925294,1733075440903,-150.0,0.00028605,2]
[343925295,1733075440913,-344.31383677,0.00028618,5]
[343925296,1733075440923,-169.870266,0.00028679,2]
[343925297,1733075440934,-5840.935,0.00028714,2]
[343925298,1733075440944,-500.0,0.00028767,3]
[343925299,1733075440953,-500.0,0.00028767,3]
[343925300,1733075440963,-500.0,0.00028767,3]
[343925301,1733075440973,-500.0,0.00028767,3]
[343925302,1733075440983,-500.0,0.00028767,3]
[343925303,1733075440993,-541.37,0.00028767,3]
[343925304,1733075441003,-3118.41,0.00028767,3]
[343925305,1733075441014,-500.0,0.00028767,3]
[343925306,1733075441024,-500.0,0.00028767,3]
[343925307,1733075441035,-585.18,0.00028767,3]
[343925308,1733075441045,-500.0,0.00028767,3]
[343925309,1733075441056,-500.0,0.00028767,3]
[343925310,1733075441067,-10337.96,0.00028767,3]
[343925311,1733075441078,-500.0,0.00028767,3]
[343925312,1733075441089,-500.0,0.00028767,3]
[343925313,1733075441101,-1652.49,0.00028767,3]
[343925314,1733075441112,-1310.96,0.00028767,3]
[343925315,1733075441123,-500.0,0.00028767,3]
[343925316,1733075441134,-500.0,0.00028767,3]
[343925317,1733075441145,-500.0,0.00028767,3]
[343925318,1733075441155,-500.0,0.00028767,3]
[343925319,1733075441164,-500.0,0.00028767,3]
[343925320,1733075441174,-839.67,0.00028767,3]
[343925321,1733075441186,-769.82599605,0.00028771,2]
[343925322,1733075441197,-8243.20238211,0.00028786,2]
[343925323,1733075441254,-1862.33263435,0.00028786,2]
[343925324,1733075441265,-1150.7112964,0.00028871,3]
[343925325,1733075441275,-150.0,0.00028945,2]
[343925326,1733075441285,-513.0,0.00028997,2]
[343925327,1733075441294,-500.0,0.00029041,3]
[343925328,1733075441304,-500.0,0.00029041,3]
[343925329,1733075441314,-500.0,0.00029041,3]
[343925330,1733075441323,-500.0,0.00029041,3]
[343925331,1733075441333,-500.0,0.00029041,3]
[343925332,1733075441342,-541.37,0.00029041,3]
[343925333,1733075441352,-3118.41,0.00029041,3]
[343925334,1733075441361,-500.0,0.00029041,3]
[343925335,1733075441371,-500.0,0.00029041,3]
[343925336,1733075441380,-585.18,0.00029041,3]
[343925337,1733075441389,-500.0,0.00029041,3]
[343925338,1733075441399,-500.0,0.00029041,3]
[343925339,1733075441408,-10337.96,0.00029041,3]
[343925340,1733075441417,-500.0,0.00029041,3]
[343925341,1733075441427,-500.0,0.00029041,3]
[343925342,1733075441437,-1652.49,0.00029041,3]
[343925343,1733075441447,-1310.96,0.00029041,3]
[343925344,1733075441459,-500.0,0.00029041,3]
[343925345,1733075441472,-500.0,0.00029041,3]
[343925346,1733075441483,-500.0,0.00029041,3]
[343925347,1733075441496,-500.0,0.00029041,3]
[343925348,1733075441506,-500.0,0.00029041,3]
[343925349,1733075441516,-839.67,0.00029041,3]
[343925350,1733075441526,-911.78830596,0.00029041,120]
[343925351,1733075441536,-187.96,0.000291,31]
[343925352,1733075441545,-187.96,0.000291,31]
[343925353,1733075441556,-187.96,0.000291,31]
[343925354,1733075441566,-187.96,0.000291,31]
[343925355,1733075441576,-187.96,0.000291,31]
[343925356,1733075441595,-187.96,0.000291,31]
[343925357,1733075441613,-187.96,0.000291,31]
[343925358,1733075441623,-187.96,0.000291,31]
[343925359,1733075441633,-187.96,0.000291,31]
[343925360,1733075441642,-187.96,0.000291,31]
[343925361,1733075441652,-187.96,0.000291,31]
[343925362,1733075441661,-187.96,0.000291,31]
[343925363,1733075441671,-187.96,0.000291,31]
[343925364,1733075441684,-187.96,0.000291,31]
[343925365,1733075441694,-187.96,0.000291,31]
[343925366,1733075441703,-187.96,0.000291,31]
[343925367,1733075441713,-187.96,0.000291,31]
[343925368,1733075441723,-187.96,0.000291,31]
[343925369,1733075441734,-187.96,0.000291,31]
[343925370,1733075441745,-187.96,0.000291,31]
[343925371,1733075441755,-187.96,0.000291,31]
[343925372,1733075441765,-187.96,0.000291,31]
[343925373,1733075441774,-187.96,0.000291,31]
[343925374,1733075441785,-187.96,0.000291,31]
[343925375,1733075441795,-10105.53501646,0.00029135,2]
[343925376,1733075441805,-150.5,0.00029185,120]
[343925377,1733075441816,-155.00087855,0.00029194,2]
[343925378,1733075441826,-150.5,0.00029195,120]
[343925379,1733075441836,-150.5,0.00029205,120]
[343925380,1733075441846,-600.0,0.00029261,2]
[343925381,1733075441856,-150.0,0.00029296,2]
[343925382,1733075441866,-500.0,0.00029315,3]
[343925383,1733075441876,-500.0,0.00029315,3]
[343925384,1733075441885,-500.0,0.00029315,3]
[343925385,1733075441895,-500.0,0.00029315,3]
[343925386,1733075441904,-491.18164741,0.00029315,3]
[343925387,1733075441914,-541.37,0.00029315,3]
[343925388,1733075441925,-3118.41,0.00029315,3]
[343925389,1733075441936,-500.0,0.00029315,3]
[343925390,1733075441945,-500.0,0.00029315,3]
[343925391,1733075441955,-585.18,0.00029315,3]
[343925392,1733075441965,-500.0,0.00029315,3]
[343925393,1733075441976,-500.0,0.00029315,3]
[343925394,1733075441987,-9500.35740829,0.00029315,3]
[343925395,1733075442001,-314.78829939,0.00029315,3]
[343925396,1733075442013,-522.81429232,0.00029315,3]
[343925397,1733075442023,-500.0,0.00029315,3]
[343925398,1733075442035,-500.0,0.00029315,3]
[343925399,1733075442053,-442.77208928,0.00029315,3]
[343925400,1733075442073,-312.41423692,0.00029315,3]
[343925401,1733075442086,-897.3036738,0.00029315,3]
[343925402,1733075442096,-526.17941582,0.00029315,3]
[343925416,1733075443294,-500.0,0.00027397,3]
[343925418,1733075443303,-702.67,0.000274,2]
[343925420,1733075443313,-1242.5829,0.00028391,15]
[343925423,1733075443395,-784.78058418,0.00029315,3]
[343925424,1733075443416,-500.0,0.00029315,3]
[343925425,1733075443427,-500.0,0.00029315,3]
[343925426,1733075443438,-500.0,0.00029315,3]
[343925427,1733075443449,-500.0,0.00029315,3]
[343925428,1733075443459,-500.0,0.00029315,3]
[343925429,1733075443470,-839.67,0.00029315,3]
[343925430,1733075443480,-150.0,0.00029395,2]
[343925431,1733075443491,-10105.53501646,0.0002943,2]
[343925432,1733075443500,-300.0,0.000295,2]
[343925433,1733075443510,-4424.62095843,0.00029509,2]
[343925434,1733075443520,-259.0,0.0002957,120]
[343925435,1733075443529,-150.5,0.0002958,120]
[343925436,1733075443538,-500.0,0.00029589,3]
[343925437,1733075443547,-500.0,0.00029589,3]
[343925438,1733075443557,-500.0,0.00029589,3]
[343925439,1733075443566,-500.0,0.00029589,3]
[343925440,1733075443578,-541.37,0.00029589,3]
[343925441,1733075443590,-2074.45492571,0.00029589,3]
[343925442,1733075443603,-1043.95507429,0.00029589,3]
[343925443,1733075443613,-119.64990996,0.00029589,3]
[343925444,1733075443626,-380.35009004,0.00029589,3]
[343925445,1733075443636,-500.0,0.00029589,3]
[343925446,1733075443645,-585.18,0.00029589,3]
[343925447,1733075443656,-500.0,0.00029589,3]
[343925448,1733075443666,-500.0,0.00029589,3]
[343925449,1733075443675,-1227.09643983,0.00029589,3]
[343925457,1733075445843,-500.0,0.00027397,3]
[343925458,1733075445853,-508.81,0.00027397,3]
[343925459,1733075445863,-5000.0,0.00028054,2]
[343925460,1733075445873,-9110.86356017,0.00029589,3]
[343925461,1733075445882,-500.0,0.00029589,3]
[343925462,1733075445891,-500.0,0.00029589,3]
[343925463,1733075445901,-1310.96,0.00029589,3]
[343925464,1733075445910,-1652.49,0.00029589,3]
[343925465,1733075445919,-500.0,0.00029589,3]
[343925466,1733075445929,-406.21389815,0.00029589,3]
[343925467,1733075445938,-500.0,0.00029589,3]
[343925468,1733075445947,-500.0,0.00029589,3]
[343925469,1733075445956,-500.0,0.00029589,3]
[343925470,1733075445966,-839.67,0.00029589,3]
[343925471,1733075445975,-10105.53501646,0.00029664,2]
[343925472,1733075445985,-187.96,0.000297,31]
[343925473,1733075445993,-187.96,0.000297,31]
[343925474,1733075446003,-187.96,0.000297,31]
[343925475,1733075446012,-187.96,0.000297,31]
[343925476,1733075446021,-187.96,0.000297,31]
[343925477,1733075446030,-187.96,0.000297,31]
[343925478,1733075446039,-187.96,0.000297,31]
[343925479,1733075446049,-187.96,0.000297,31]
[343925480,1733075446058,-187.96,0.000297,31]
[343925481,1733075446067,-187.96,0.000297,31]
[343925482,1733075446077,-187.96,0.000297,31]
[343925483,1733075446087,-187.96,0.000297,31]
[343925484,1733075446096,-187.96,0.000297,31]
[343925485,1733075446105,-187.96,0.000297,31]
[343925486,1733075446115,-187.96,0.000297,31]
[343925487,1733075446124,-187.96,0.000297,31]
[343925488,1733075446132,-187.96,0.000297,31]
[343925489,1733075446141,-187.96,0.000297,31]
[343925490,1733075446151,-187.96,0.000297,31]
[343925491,1733075446160,-187.96,0.000297,31]
[343925492,1733075446169,-187.96,0.000297,31]
[343925493,1733075446178,-187.96,0.000297,31]
[343925494,1733075446190,-187.96,0.000297,31]
[343925495,1733075446199,-187.96,0.000297,31]
[343925496,1733075446209,-298.4799569,0.00029828,2]
[343925497,1733075446218,-500.0,0.00029863,3]
[343925498,1733075446227,-500.0,0.00029863,3]
[343925499,1733075446236,-500.0,0.00029863,3]
[343925500,1733075446244,-500.0,0.00029863,3]
[343925501,1733075446253,-541.37,0.00029863,3]
[343925502,1733075446262,-3118.41,0.00029863,3]
[343925503,1733075446271,-500.0,0.00029863,3]
[343925504,1733075446281,-500.0,0.00029863,3]
[343925505,1733075446290,-585.18,0.00029863,3]
[343925506,1733075446299,-500.0,0.00029863,3]
[343925507,1733075446310,-500.0,0.00029863,3]
[343925508,1733075446319,-10337.96,0.00029863,3]
[343925509,1733075446329,-500.0,0.00029863,3]
[343925510,1733075446339,-500.0,0.00029863,3]
[343925511,1733075446348,-1310.96,0.00029863,3]
[343925512,1733075446358,-1652.49,0.00029863,3]
[343925513,1733075446368,-500.0,0.00029863,3]
[343925514,1733075446377,-500.0,0.00029863,3]
[343925515,1733075446387,-500.0,0.00029863,3]
[343925516,1733075446396,-500.0,0.00029863,3]
[343925517,1733075446405,-839.67,0.00029863,3]
[343925518,1733075446415,-27928.5639926,0.0003,7]
[343925519,1733075446424,-155.76463579,0.0003,120]
[343925520,1733075446435,-429.0,0.0003,2]
[343925521,1733075446444,-429.0,0.0003,2]
[343925522,1733075446453,-285.0,0.0003,2]
[343925523,1733075446463,-10105.53501655,0.00030018,2]
[343925524,1733075446472,-500.0,0.00030136,3]
[343925525,1733075446482,-500.0,0.00030136,3]
[343925526,1733075446491,-500.0,0.00030136,3]
[343925527,1733075446500,-500.0,0.00030136,3]
[343925528,1733075446510,-541.37,0.00030136,3]
[343925529,1733075446519,-3118.41,0.00030136,3]
[343925530,1733075446528,-500.0,0.00030136,3]
[343925531,1733075446537,-500.0,0.00030136,3]
[343925532,1733075446547,-585.18,0.00030136,3]
[343925533,1733075446556,-500.0,0.00030136,3]
[343925534,1733075446566,-10337.96,0.00030136,3]
[343925535,1733075446575,-500.0,0.00030136,3]
[343925536,1733075446589,-500.0,0.00030136,3]
[343925537,1733075446598,-500.0,0.00030136,3]
[343925538,1733075446608,-1310.96,0.00030136,3]
[343925539,1733075446617,-1652.49,0.00030136,3]
[343925540,1733075446629,-500.0,0.00030136,3]
[343925541,1733075446638,-500.0,0.00030136,3]
[343925542,1733075446647,-500.0,0.00030136,3]
[343925543,1733075446658,-500.0,0.00030136,3]
[343925544,1733075446667,-839.67,0.00030136,3]
[343925545,1733075446677,-187.96,0.000303,31]
[343925546,1733075446688,-187.96,0.000303,31]
[343925547,1733075446698,-187.96,0.000303,31]
[343925548,1733075446708,-187.96,0.000303,31]
[343925549,1733075446717,-187.96,0.000303,31]
[343925550,1733075446727,-187.96,0.000303,31]
[343925551,1733075446736,-187.96,0.000303,31]
[343925552,1733075446745,-187.96,0.000303,31]
[343925553,1733075446755,-187.96,0.000303,31]
[343925554,1733075446764,-187.96,0.000303,31]
[343925555,1733075446774,-187.96,0.000303,31]
[343925556,1733075446783,-187.96,0.000303,31]
[343925557,1733075446792,-187.96,0.000303,31]
[343925558,1733075446802,-187.96,0.000303,31]
[343925559,1733075446811,-187.96,0.000303,31]
[343925560,1733075446820,-187.96,0.000303,31]
[343925561,1733075446830,-559.43103583,0.00030373,2]
[343925562,1733075446839,-666.0,0.00030374,2]
[343925563,1733075446848,-2000.0,0.000304,3]
[343925564,1733075446858,-187.0,0.000304,3]
[343925565,1733075446867,-500.0,0.0003041,3]
[343925566,1733075446877,-500.0,0.0003041,3]
[343925567,1733075446886,-500.0,0.0003041,3]
[343925568,1733075446895,-500.0,0.0003041,3]
[343925569,1733075446904,-541.37,0.0003041,3]
[343925570,1733075446913,-3118.41,0.0003041,3]
[343925571,1733075446923,-500.0,0.0003041,3]
[343925572,1733075446935,-500.0,0.0003041,3]
[343925573,1733075446948,-585.18,0.0003041,3]
[343925574,1733075446959,-500.0,0.0003041,3]
[343925575,1733075446970,-10337.96,0.0003041,3]
[343925576,1733075446980,-500.0,0.0003041,3]
[343925577,1733075446991,-413.0,0.0003041,3]
[343925578,1733075447000,-500.0,0.0003041,3]
[343925579,1733075447010,-1310.96,0.0003041,3]
[343925580,1733075447019,-1652.49,0.0003041,3]
[343925581,1733075447029,-255.12,0.0003041,3]
[343925582,1733075447038,-385.57240808,0.0003041,3]
[343925583,1733075447047,-500.0,0.0003041,3]
[343925584,1733075447056,-500.0,0.0003041,3]
[343925585,1733075447066,-839.67,0.0003041,3]
[343925586,1733075447075,-4424.62095843,0.00030417,2]
[343925587,1733075447084,-173.59,0.00030417,7]
[343925588,1733075447094,-160.0,0.00030455,5]
[343925589,1733075447104,-251.54109862,0.00030475,11]
[343925590,1733075447113,-264.86582276,0.00030475,11]
[343925591,1733075447122,-500.0,0.0003048,5]
[343925592,1733075447131,-481.0929288,0.0003048,5]
[343925593,1733075447141,-150.14,0.0003048,2]
[343925594,1733075447151,-150.14,0.0003048,2]
[343925595,1733075447160,-150.14,0.0003048,2]
[343925596,1733075447170,-150.14,0.0003048,2]
[343925597,1733075447180,-201.51428113,0.0003048,2]
[343925598,1733075447189,-150.14,0.0003048,2]
[343925599,1733075447199,-151.0,0.00030482,7]
[343925600,1733075447208,-151.0,0.00030482,7]
[343925601,1733075447218,-151.0,0.00030482,7]
[343925602,1733075447227,-151.0,0.00030482,7]
[343925603,1733075447237,-300.0,0.000305,3]
[343925604,1733075447247,-740.10610112,0.000305,30]
[343925605,1733075447256,-5512.39788097,0.00030517,2]
[343925606,1733075447265,-20536.12648493,0.00030517,10]
[343925615,1733076082359,185.762213,0.00013973,2]
[343925618,1733076407134,-4570.34833418,0.00019643,2]
[343925657,1733076640323,-268.16806018,0.00019253,2]
[343925658,1733076640336,-3891.6008175,0.00019253,2]
[343925659,1733076640345,-5000.0,0.00019447,2]
[343925660,1733076640356,-185.762213,0.00020447,2]
[343925661,1733076640365,-300.0,0.0002156,2]
[343925662,1733076640377,-300.0,0.0002156,2]
[343925663,1733076640387,-500.0,0.00021561,2]
[343925664,1733076640397,-500.0,0.00021561,2]
[343925665,1733076640406,-238.37868841,0.00021561,2]
[343925666,1733076640415,-505.77451353,0.000216,2]
[343925667,1733076640425,-501.46062903,0.000216,2]
[343925668,1733076640435,-500.0,0.000216,2]
[343925669,1733076640444,-500.0,0.000216,2]
[343925670,1733076640453,-1054.6834251,0.00021865,2]
[343925671,1733076640462,-1858.5895767,0.00022088,2]
[343925672,1733076640471,-14009.4105196,0.00022222,2]
[343925673,1733076640480,-871.93713516,0.000225,2]
[343925674,1733076640489,-179.51436137,0.000226,2]
[343925675,1733076640499,-179.51436135,0.000226,2]
[343925676,1733076640509,-179.51436135,0.000226,2]
[343925677,1733076640518,-156.0,0.00023,2]
[343925678,1733076640528,-300.0,0.00023439,2]
[343925679,1733076640537,-160.0,0.00023562,2]
[343925680,1733076640546,-871.93713514,0.00023631,2]
[343925681,1733076640556,-420.0,0.00023716,2]
[343925682,1733076640565,-290.064417,0.00024113,2]
[343925683,1733076640574,-5201.0547656,0.00024197,2]
[343925684,1733076640583,-160.0,0.00024433,2]
[343925685,1733076640592,-696.29845532,0.00024448,2]
[343925686,1733076640602,-5000.0,0.00024448,2]
[343925687,1733076640612,-871.93713514,0.00024763,2]
[343925688,1733076640624,-169.275,0.00025029,8]
[343925689,1733076640634,-160.0,0.00025305,2]
[343925690,1733076640643,-871.93713514,0.00025894,2]
[343925691,1733076640655,-160.0,0.00026177,2]
[343925692,1733076640664,-660.0,0.00026384,2]
[343925693,1733076640674,-228.0,0.000265,2]
[343925694,1733076640683,-185.762213,0.00026921,2]
[343925695,1733076640693,-871.93713514,0.00027025,2]
[343925696,1733076640702,-160.0,0.00027049,2]
[343925697,1733076640711,-940.3509116,0.00027198,2]
[343925698,1733076640721,-152.37051406,0.00027273,2]
[343925699,1733076640731,-3073.3697285,0.00027294,2]
[343925700,1733076640740,-250.0,0.00027296,2]
[343925701,1733076640750,-166.57622243,0.00027296,2]
[343925702,1733076640759,-500.0,0.00027296,2]
[343925703,1733076640768,-496.11395125,0.00027296,2]
[343925704,1733076640778,-169.5832442,0.00027296,2]
[343925705,1733076640788,-500.0,0.00027296,2]
[343925706,1733076640797,-554.39293955,0.00027296,2]
[343925707,1733076640807,-500.0,0.00027296,2]
[343925708,1733076640816,-455.844402,0.00027296,2]
[343925709,1733076640825,-1703.96551568,0.00027297,2]
[343925711,1733076640837,-2194.025,0.00027297,2]
[343925724,1733076643284,-3366.80814665,0.00027297,2]
[343925726,1733076643335,-507.81648157,0.00027297,2]
[343925732,1733076646092,-3212.30000001,0.00027297,2]
[343925733,1733076701498,166.049806,0.00013973,2]
[343925734,1733076724546,989.44706415,0.00026,60]
[343925748,1733077409149,165.913444,0.00013973,2]
[343925749,1733077771538,-154.49976946,0.000176,2]
[343925781,1733077832433,-2735.20724908,0.00017424,2]
[343925782,1733077832472,-1406.22166999,0.00017424,2]
[343925783,1733077832483,-1866.99373466,0.000176,2]
[343925784,1733077832494,-799.61,0.0001998,3]
[343925785,1733077832505,-300.0,0.00019989,2]
[343925786,1733077832515,-300.0,0.00019989,2]
[343925787,1733077832525,-449.08772425,0.00019989,2]
[343925788,1733077832535,-182151.30363002,0.0001999,2]
[343925789,1733077832546,-3223.7261973,0.0002,2]
[343925790,1733077832555,-339.0056711,0.0002,7]
[343925791,1733077832567,-17680.0,0.0002,2]
[343925792,1733077832576,-52827.66335891,0.00020377,2]
[343925793,1733077832585,-165.913444,0.00020447,2]
[343925794,1733077832595,-2411.60430053,0.0002061,2]
[343925795,1733077832605,-3899.80154489,0.0002066,7]
[343925796,1733077832614,-300.0,0.00021766,2]
[343925797,1733077832624,-404.0,0.00021988,2]
[343925799,1733077832633,-25682.92748108,0.00022,2]
[343925800,1733077832642,-161.01178796,0.00022,10]
[343925801,1733077832652,-815.86687934,0.00022,3]
[343925802,1733077832662,-1000.0,0.00025,25]
[343925803,1733077832671,-193958.96012501,0.00025,2]
[343925804,1733077832681,-165.94439858,0.00025,2]
[343925805,1733077832691,-57105.51656024,0.00025,2]
[343925806,1733077832700,-203.98259967,0.00025,2]
[343925807,1733077832710,-9174.4827813,0.00025,2]
[343925808,1733077832720,-511.30576493,0.00025,2]
[343925809,1733077832728,-302.75782099,0.00025,2]
[343925810,1733077832738,-49449.74718416,0.0002509,2]
[343925811,1733077832747,-302.75782099,0.0002525,2]
[343925812,1733077832757,-290.0644189,0.00025495,2]
[343925813,1733077832767,-76370.82517004,0.000255,2]
[343925814,1733077832776,-302.75782099,0.000255,2]
[343925815,1733077832785,-15911.9714221,0.00025603,2]
[343925816,1733077832794,-185.522549,0.00025667,2]
[343925817,1733077832804,-302.75782099,0.0002575,2]
[343925818,1733077832814,-1000.0,0.00026,26]
[343925819,1733077832825,-19900.0,0.00026,2]
[343925820,1733077832834,-302.75782099,0.00026,2]
[343925821,1733077832843,-380.0,0.0002605,2]
[343925822,1733077832853,-255.35563062,0.0002625,4]
[343925823,1733077832862,-165.913444,0.00026921,2]
[343925824,1733077832872,-77585.95620362,0.00027,5]
[343925832,1733077838350,-264.1509159,0.00019989,2]
[343925833,1733077838379,-235.8490841,0.00019989,2]
[343925834,1733077838389,-192.63961902,0.00019989,2]
[343925835,1733077838399,-547.15088925,0.00019989,2]
[343925836,1733077838409,-500.0,0.00019989,2]
[343925837,1733077838419,-280.34760002,0.00019989,2]
[343925838,1733077838429,-181.37821576,0.00019989,2]
[343925839,1733077838438,-172.71032662,0.00019989,2]
[343925840,1733077838447,-464.19897021,0.0001999,2]
[343925841,1733077838456,-2296.92529502,0.00027,5]
[343925842,1733077838468,-2169.89484027,0.00027,5]
[343925866,1733077840557,-46736.65014443,0.00027,5]
[343925867,1733077840570,-11537.94627771,0.00027,5]